fUST/lending_fUST_20250731
["ID","MTS","AMOUNT","RATE_DAILY","PERIOD"]
[376386144,1753959435435,-500.0,0.00018777,2]
[376386145,1753959482497,300.0,0.00018777,2]
[376386146,1753959506000,8177.74123748,0.00018154,2]
[376386147,1753959506022,11307.75577582,0.00018154,2]
[376386148,1753959510257,510.98490815,0.00018215,2]
[376386149,1753959519376,-9162.09082589,0.00018778,2]
[376386150,1753959519621,-10000.0,0.00018778,2]
[376386151,1753959519987,-10000.0,0.00018778,2]
[376386152,1753959520218,-10000.0,0.00018778,2]
[376386153,1753959520586,-10000.0,0.00018778,2]
[376386154,1753959521204,-10000.0,0.00018778,2]
[376386155,1753959521474,-10000.0,0.00018778,2]
[376386156,1753959521881,-10000.0,0.00018778,2]
[376386157,1753959522047,-10000.0,0.00018778,2]
[376386158,1753959522308,-10000.0,0.00018778,2]
[376386159,1753959523084,-10000.0,0.00018778,2]
[376386160,1753959523372,-10000.0,0.00018778,2]
[376386161,1753959523708,-10000.0,0.00018778,2]
[376386162,1753959523982,-10000.0,0.00018778,2]
[376386163,1753959524307,-10000.0,0.00018778,2]
[376386164,1753959524577,-10000.0,0.00018778,2]
[376386165,1753959524865,-10000.0,0.00018778,2]
[376386166,1753959525196,-10000.0,0.00018778,2]
[376386167,1753959525462,-10000.0,0.00018778,2]
[376386168,1753959525709,-10000.0,0.00018778,2]
[376386169,1753959525979,-10000.0,0.00018778,2]
[376386170,1753959526204,-10000.0,0.00018778,2]
[376386171,1753959526472,-10000.0,0.00018778,2]
[376386172,1753959526708,-10000.0,0.00018778,2]
[376386173,1753959526992,-36.71910481,0.00018778,2]
[376386174,1753959527021,-150.13505703,0.00018778,2]
[376386175,1753959536571,716.30248904,0.000188,2]
[376386176,1753959545379,5000.0,0.000188,2]
[376386178,1753959554691,3909.98918728,0.000188,2]
[376386179,1753959554712,1090.01081272,0.000188,2]
[376386180,1753959562610,5000.0,0.000188,2]
[376386181,1753959570749,1242.0259553,0.000188,2]
[376386182,1753959573454,157.77605305,0.000188,2]
[376386183,1753959575696,-353.365103,0.00018868,2]
[376386184,1753959575718,-302.63687509,0.000189,2]
[376386185,1753959575741,-8343.53381458,0.00019077,2]
[376386186,1753959575762,-235.90776366,0.00019089,2]
[376386187,1753959575783,-300.0,0.00019152,2]
[376386188,1753959575806,-200.0,0.00019153,15]
[376386189,1753959575829,-200.0,0.00019153,15]
[376386190,1753959575852,-200.0,0.00019153,15]
[376386191,1753959575875,-200.0,0.00019153,15]
[376386192,1753959575896,-500.0,0.00019173,2]
[376386193,1753959575916,-500.0,0.00019173,2]
[376386194,1753959575937,-500.0,0.00019173,2]
[376386195,1753959575958,-500.0,0.00019173,2]
[376386196,1753959575979,-764.94690438,0.00019176,2]
[376386197,1753959576000,-764.94690438,0.00019176,2]
[376386198,1753959576024,-764.94690438,0.00019176,2]
[376386199,1753959576046,-764.94690438,0.00019176,2]
[376386200,1753959576069,-764.94690438,0.00019176,2]
[376386201,1753959576091,-764.94690438,0.00019176,2]
[376386202,1753959576112,-764.94690438,0.00019176,2]
[376386203,1753959576136,-764.94690438,0.00019176,2]
[376386204,1753959576157,-764.94690438,0.00019176,2]
[376386205,1753959576178,-764.94690438,0.00019176,2]
[376386206,1753959576199,-764.94690438,0.00019176,2]
[376386207,1753959576221,-764.94690438,0.00019176,2]
[376386208,1753959576242,-764.94690438,0.00019176,2]
[376386209,1753959576264,-25.24668673,0.00019176,2]
[376386211,1753959599747,2510.18717893,0.00018678,2]
[376386212,1753959599771,10000.0,0.00018678,2]
[376386213,1753959599793,10000.0,0.00018678,2]
[376386214,1753959599817,10000.0,0.00018678,2]
[376386215,1753959599843,10000.0,0.00018678,2]
[376386216,1753959599865,10000.0,0.00018678,2]
[376386217,1753959599887,10000.0,0.00018678,2]
[376386218,1753959599911,10000.0,0.00018678,2]
[376386219,1753959599934,10000.0,0.00018678,2]
[376386220,1753959599959,10000.0,0.00018678,2]
[376386221,1753959599982,10000.0,0.00018678,2]
[376386222,1753959600006,10000.0,0.00018678,2]
[376386223,1753959600031,10000.0,0.00018678,2]
[376386224,1753959600054,10000.0,0.00018678,2]
[376386225,1753959600079,10000.0,0.00018678,2]
[376386226,1753959600103,10000.0,0.00018678,2]
[376386227,1753959600125,10000.0,0.00018678,2]
[376386228,1753959600148,10000.0,0.00018678,2]
[376386229,1753959600171,10000.0,0.00018678,2]
[376386230,1753959600194,10000.0,0.00018678,2]
[376386231,1753959600217,10000.0,0.00018678,2]
[376386232,1753959600240,10000.0,0.00018678,2]
[376386233,1753959600263,8181.25931603,0.00018678,2]
[376386234,1753959600286,20000.0,0.00018678,2]
[376386235,1753959600309,20000.0,0.00018678,2]
[376386236,1753959600332,20000.0,0.00018678,2]
[376386237,1753959600354,20000.0,0.00018678,2]
[376386238,1753959600376,20000.0,0.00018678,2]
[376386239,1753959600400,20000.0,0.00018678,2]
[376386240,1753959600423,20000.0,0.00018678,2]
[376386241,1753959600447,9308.55350504,0.00018678,2]
[376386242,1753959615638,5000.0,0.00018778,2]
[376386243,1753959625371,5691.44649496,0.00018121,2]
[376386244,1753959625393,4337.43705484,0.00018121,2]
[376386245,1753959630868,5000.0,0.00018778,2]
[376386246,1753959646284,251.02755631,0.00018778,2]
[376386247,1753959649182,166.0502886,0.00018121,2]
[376386248,1753959724449,-162.50771689,0.00018784,2]
[376386249,1753959729531,10000.0,0.00018064,2]
[376386250,1753959730360,202.66508708,0.00018768,2]
[376386251,1753959745688,42.82001317,0.00018768,2]
[376386252,1753959745710,607.38936328,0.00018768,2]
[376386253,1753959746151,650.2093764,0.00018774,2]
[376386254,1753959747726,-152.0,0.00018781,2]
[376386255,1753959751661,-385.18148511,0.00018781,2]
[376386256,1753959753985,-113.02789129,0.00018781,2]
[376386257,1753959754007,-62.62795922,0.00018784,2]
[376386258,1753959754034,-109.8364326,0.00018787,2]
[376386259,1753959757812,-238.29172907,0.00018787,2]
[376386260,1753959761204,-302.08121473,0.00018787,2]
[376386261,1753959772893,5000.0,0.00018778,2]
[376386262,1753959777915,212.0246997,0.00018023,2]
[376386263,1753959785398,1762.243017,0.00018034,2]
[376386264,1753959788391,5000.0,0.00018778,2]
[376386265,1753959804628,5000.0,0.00018778,2]
[376386266,1753959810715,1768.13354362,0.00018034,2]
[376386267,1753959810740,20000.0,0.00018034,2]
[376386268,1753959810765,3131.86645638,0.00018034,2]
[376386269,1753959811538,1044.136477,0.0001823,2]
[376386270,1753959811904,1044.136477,0.00018236,2]
[376386271,1753959812944,771.13788835,0.00018302,2]
[376386272,1753959813340,385.56894417,0.00018333,2]
[376386273,1753959813750,192.78447209,0.00018419,2]
[376386274,1753959843585,1300.4187528,0.00018768,2]
[376386275,1753959881897,271.88372,0.00013699,2]
[376386276,1753959882549,-257.63607651,0.00018788,2]
[376386277,1753959884789,-171.29117867,0.00018788,2]
[376386278,1753959886440,-233.34904124,0.00018788,2]
[376386280,1753959888841,-451.33237586,0.00018788,2]
[376386281,1753959891121,-204.08925965,0.00018788,2]
[376386282,1753959893969,-204.07219442,0.00018788,2]
[376386284,1753959899208,-300.0,0.00018788,2]
[376386285,1753959902617,-222.15660986,0.00018788,2]
[376386288,1753959904449,-358.342532,0.00018788,2]
[376386289,1753959907355,-191.6112096,0.00018788,2]
[376386290,1753959909038,-186.89339211,0.00018788,2]
[376386292,1753959913729,-157.63607651,0.00018788,2]
[376386293,1753959915322,-415.73274598,0.00018788,2]
[376386294,1753959920197,-293.83146962,0.00018788,2]
[376386295,1753960014235,5000.0,0.00018778,2]
[376386296,1753960029746,5000.0,0.00018778,2]
[376386298,1753960046267,2050.8512843,0.00018778,2]
[376386299,1753960046290,2949.1487157,0.00018778,2]
[376386300,1753960062946,5000.0,0.00018778,2]
[376386301,1753960078922,5000.0,0.00018778,2]
[376386302,1753960079206,7050.8512843,0.00018046,2]
[376386303,1753960079227,2718.1771067,0.00018046,2]
[376386304,1753960083647,366.2276913,0.0001819,2]
[376386305,1753960096333,5000.0,0.00018778,2]
[376386306,1753960112229,5000.0,0.00018778,2]
[376386307,1753960115091,427.361384,0.00018333,2]
[376386308,1753960115450,226.4879699,0.00018409,2]
[376386309,1753960128196,5000.0,0.00018778,2]
[376386310,1753960144093,1261.7458481,0.00018778,2]
[376386311,1753960144116,3738.2541519,0.00018778,2]
[376386313,1753960160002,5000.0,0.00018778,2]
[376386314,1753960175531,5000.0,0.00018778,2]
[376386315,1753960191441,5000.0,0.00018778,2]
[376386327,1753960208416,1261.7458481,0.00018778,2]
[376386328,1753960208438,3738.2541519,0.00018778,2]
[376386329,1753960223917,5000.0,0.00018778,2]
[376386387,1753960232573,-764.41582287,0.00018788,2]
[376386389,1753960232583,-500.0,0.00018868,2]
[376386391,1753960232592,-1200.0,0.00018898,2]
[376386393,1753960232602,-300.0,0.00018899,2]
[376386395,1753960232611,-300.0,0.00018899,2]
[376386397,1753960232620,-300.0,0.00018899,2]
[376386399,1753960232630,-300.0,0.00018899,2]
[376386401,1753960232639,-300.0,0.00018899,2]
[376386403,1753960232648,-2399.87068217,0.000189,2]
[376386405,1753960232657,-302.63687509,0.000189,2]
[376386407,1753960232666,-283.68555776,0.000189,2]
[376386409,1753960232677,-433.35688324,0.00018976,2]
[376386411,1753960232686,-43.41492018,0.00018988,2]
[376386413,1753960232698,-389.94196305,0.00018988,2]
[376386415,1753960232707,-136.21461789,0.00019,2]
[376386418,1753960232723,-14.78538211,0.00019,2]
[376386420,1753960232733,-1125.79241675,0.00019,2]
[376386422,1753960232744,-355.72495,0.00019,2]
[376386424,1753960232755,-456.47960642,0.00019,2]
[376386976,1753960238843,-9434.15791784,0.00019,2]
[376386977,1753960238856,-3118.33321448,0.00019,2]
[376386978,1753960238865,-433.35688323,0.00019,2]
[376386979,1753960238874,-500.0,0.00019073,2]
[376386981,1753960238883,-503.84649585,0.00019073,2]
[376386982,1753960238893,-500.86445789,0.00019073,2]
[376386983,1753960238903,-914.0,0.00019075,2]
[376386984,1753960238913,-3118.33321446,0.00019075,2]
[376386985,1753960238923,-593.06051652,0.00019077,2]
[376386986,1753960238933,-1595.22481786,0.00019077,2]
[376386987,1753960238942,-1595.22481786,0.00019077,2]
[376386988,1753960238951,-1595.22481786,0.00019077,2]
[376386989,1753960238961,-1595.22481786,0.00019077,2]
[376386990,1753960238970,-1595.22481786,0.00019077,2]
[376386991,1753960238981,-1595.22481786,0.00019077,2]
[376386992,1753960238990,-1595.22481786,0.00019077,2]
[376386993,1753960238999,-1595.22481786,0.00019077,2]
[376386994,1753960239010,-1595.22481786,0.00019077,2]
[376386995,1753960239019,-1595.22481786,0.00019077,2]
[376386996,1753960239029,-1595.22481786,0.00019077,2]
[376386997,1753960239038,-1595.22481786,0.00019077,2]
[376386998,1753960239048,-1595.22481786,0.00019077,2]
[376386999,1753960239057,-1595.22481786,0.00019077,2]
[376387000,1753960239066,-1609.72686165,0.00019077,2]
[376387001,1753960239075,-1609.72686165,0.00019077,2]
[376387002,1753960239084,-1609.72686165,0.00019077,2]
[376387003,1753960239093,-1609.72686165,0.00019077,2]
[376387004,1753960239103,-1609.72686165,0.00019077,2]
[376387005,1753960239113,-1609.72686165,0.00019077,2]
[376387006,1753960239122,-1609.72686165,0.00019077,2]
[376387007,1753960239131,-1609.72686165,0.00019077,2]
[376387008,1753960239141,-1609.72686165,0.00019077,2]
[376387009,1753960239150,-1609.72686165,0.00019077,2]
[376387010,1753960239158,-218.8421865,0.00019077,2]
[376387011,1753960239167,-500.0,0.00019077,2]
[376387012,1753960239176,-574.04736948,0.00019077,2]
[376387013,1753960239185,-259789.37901869,0.00019078,2]
[376387014,1753960239194,-837.13758042,0.00019078,2]
[376387015,1753960239203,-151.0,0.000191,2]
[376387016,1753960239212,-500.0,0.000191,2]
[376387017,1753960239222,-3118.33321446,0.0001915,2]
[376387018,1753960239232,-457.72,0.00019168,3]
[376387019,1753960239242,-355.713762,0.00019173,2]
[376387020,1753960239251,-500.70695849,0.00019173,2]
[376387021,1753960239260,-504.30457904,0.00019173,2]
[376387022,1753960239276,-500.0,0.00019173,2]
[376387023,1753960239287,-590.54686274,0.00019173,2]
[376387024,1753960239296,-500.0,0.00019173,2]
[376387025,1753960239305,-501.03740505,0.00019173,2]
[376387026,1753960239315,-183.96621129,0.00019173,2]
[376387027,1753960239324,-501.7862434,0.00019173,2]
[376387028,1753960239334,-500.0,0.00019173,2]
[376387029,1753960239344,-501.55322601,0.00019173,2]
[376387030,1753960239353,-500.0,0.00019173,2]
[376387031,1753960239363,-500.0,0.00019173,2]
[376387032,1753960239373,-486.43131281,0.00019173,2]
[376387033,1753960239382,-500.0,0.00019173,2]
[376387034,1753960239391,-501.18544269,0.00019173,2]
[376387035,1753960239400,-500.0,0.00019173,2]
[376387036,1753960239409,-500.0,0.00019173,2]
[376387037,1753960239418,-162.07,0.00019177,2]
[376387038,1753960239428,-460.0,0.00019178,2]
[376387039,1753960239437,-460.0,0.00019178,2]
[376387040,1753960239446,-460.0,0.00019178,2]
[376387041,1753960239455,-460.0,0.00019178,2]
[376387042,1753960239466,-460.0,0.00019178,2]
[376387043,1753960239477,-460.0,0.00019178,2]
[376387044,1753960239486,-460.0,0.00019178,2]
[376387045,1753960239496,-460.0,0.00019178,2]
[376387046,1753960239506,-461.62230653,0.00019178,2]
[376387047,1753960239522,-460.0,0.00019178,2]
[376387048,1753960239535,-460.0,0.00019178,2]
[376387049,1753960239544,-460.0,0.00019178,2]
[376387050,1753960239554,-526.06024635,0.00019178,2]
[376387051,1753960239564,-460.0,0.00019178,2]
[376387052,1753960239574,-460.0,0.00019178,2]
[376387053,1753960239584,-460.0,0.00019178,2]
[376387054,1753960239594,-460.0,0.00019178,2]
[376387055,1753960239605,-460.0,0.00019178,2]
[376387056,1753960239614,-460.0,0.00019178,2]
[376387057,1753960239626,-460.0,0.00019178,2]
[376387058,1753960239636,-460.0,0.00019178,2]
[376387059,1753960239646,-460.0,0.00019178,2]
[376387060,1753960239655,-460.0,0.00019178,2]
[376387061,1753960239665,-460.0,0.00019178,2]
[376387062,1753960239676,-460.0,0.00019178,2]
[376387063,1753960239685,-460.0,0.00019178,2]
[376387064,1753960239694,-460.0,0.00019178,2]
[376387065,1753960239703,-460.0,0.00019178,2]
[376387066,1753960239713,-264.30635117,0.00019178,2]
[376387067,1753960239722,-294.70802566,0.00019178,2]
[376387068,1753960239734,-460.0,0.00019178,2]
[376387069,1753960239743,-460.0,0.00019178,2]
[376387070,1753960239754,-460.0,0.00019178,2]
[376387071,1753960239764,-467.71238567,0.00019178,2]
[376387072,1753960239778,-460.0,0.00019178,2]
[376387073,1753960239788,-460.0,0.00019178,2]
[376387074,1753960239798,-460.0,0.00019178,2]
[376387075,1753960239808,-500.0,0.00019178,2]
[376387076,1753960239818,-460.0,0.00019178,2]
[376387077,1753960239828,-460.0,0.00019178,2]
[376387078,1753960239837,-460.0,0.00019178,2]
[376387079,1753960239846,-460.0,0.00019178,2]
[376387080,1753960239857,-460.0,0.00019178,2]
[376387081,1753960239866,-460.0,0.00019178,2]
[376387082,1753960239878,-460.0,0.00019178,2]
[376387083,1753960239887,-460.0,0.00019178,2]
[376387084,1753960239897,-460.0,0.00019178,2]
[376387085,1753960239906,-468.43207733,0.00019178,2]
[376387086,1753960239917,-460.0,0.00019178,2]
[376387087,1753960239927,-460.0,0.00019178,2]
[376387088,1753960239936,-460.0,0.00019178,2]
[376387089,1753960239947,-460.0,0.00019178,2]
[376387090,1753960239956,-460.0,0.00019178,2]
[376387091,1753960239966,-460.0,0.00019178,2]
[376387092,1753960239975,-460.0,0.00019178,2]
[376387093,1753960239985,-460.0,0.00019178,2]
[376387094,1753960239995,-460.0,0.00019178,2]
[376387096,1753960240005,-179.98915129,0.00019178,2]
[376387098,1753960240014,-460.0,0.00019178,2]
[376387100,1753960240023,-460.0,0.00019178,2]
[376387102,1753960240033,-503.5389142,0.00019178,2]
[376387104,1753960240043,-460.0,0.00019178,2]
[376387106,1753960240053,-460.0,0.00019178,2]
[376387107,1753960240062,-460.0,0.00019178,2]
[376387108,1753960240071,-460.0,0.00019178,2]
[376387109,1753960240080,-460.0,0.00019178,2]
[376387110,1753960240231,-460.0,0.00019178,2]
[376387111,1753960240242,-460.0,0.00019178,2]
[376387112,1753960240251,-460.0,0.00019178,2]
[376387113,1753960240261,-460.91552436,0.00019178,2]
[376387115,1753960240271,-460.0,0.00019178,2]
[376387117,1753960240281,-460.0,0.00019178,2]
[376387119,1753960240291,-460.66746692,0.00019178,2]
[376387121,1753960240301,-460.0,0.00019178,2]
[376387122,1753960240310,-460.0,0.00019178,2]
[376387124,1753960240320,-460.0,0.00019178,2]
[376387125,1753960240329,-460.0,0.00019178,2]
[376387126,1753960240339,-524.55957672,0.00019178,2]
[376387127,1753960240348,-460.0,0.00019178,2]
[376387128,1753960240357,-460.0,0.00019178,2]
[376387129,1753960240366,-460.0,0.00019178,2]
[376387130,1753960240375,-460.0,0.00019178,2]
[376387131,1753960240385,-460.0,0.00019178,2]
[376387132,1753960240394,-460.0,0.00019178,2]
[376387133,1753960240404,-460.0,0.00019178,2]
[376387134,1753960240413,-467.6544466,0.00019178,2]
[376387135,1753960240423,-460.0,0.00019178,2]
[376387136,1753960240432,-460.0,0.00019178,2]
[376387137,1753960240441,-460.0,0.00019178,2]
[376387138,1753960240450,-460.0,0.00019178,2]
[376387139,1753960240459,-460.0,0.00019178,2]
[376387140,1753960240469,-460.0,0.00019178,2]
[376387141,1753960240482,-460.0,0.00019178,2]
[376387142,1753960240492,-460.0,0.00019178,2]
[376387143,1753960240501,-460.0,0.00019178,2]
[376387144,1753960240511,-460.0,0.00019178,2]
[376387145,1753960240520,-460.0,0.00019178,2]
[376387146,1753960240530,-460.0,0.00019178,2]
[376387147,1753960240539,-460.0,0.00019178,2]
[376387148,1753960240548,-460.0,0.00019178,2]
[376387149,1753960240557,-460.0,0.00019178,2]
[376387150,1753960240567,-460.0,0.00019178,2]
[376387151,1753960240576,-460.0,0.00019178,2]
[376387152,1753960240585,-460.0,0.00019178,2]
[376387153,1753960240595,-462.32976446,0.00019178,2]
[376387154,1753960240604,-460.0,0.00019178,2]
[376387155,1753960240613,-460.0,0.00019178,2]
[376387156,1753960240623,-460.0,0.00019178,2]
[376387157,1753960240632,-460.0,0.00019178,2]
[376387158,1753960240641,-460.0,0.00019178,2]
[376387159,1753960240651,-460.0,0.00019178,2]
[376387160,1753960240660,-460.0,0.00019178,2]
[376387161,1753960240670,-460.0,0.00019178,2]
[376387162,1753960240679,-460.0,0.00019178,2]
[376387163,1753960240688,-460.0,0.00019178,2]
[376387164,1753960240700,-460.0,0.00019178,2]
[376387165,1753960240710,-460.0,0.00019178,2]
[376387166,1753960240719,-460.0,0.00019178,2]
[376387167,1753960240730,-460.0,0.00019178,2]
[376387168,1753960240740,-460.0,0.00019178,2]
[376387169,1753960240750,-460.0,0.00019178,2]
[376387170,1753960240759,-460.0,0.00019178,2]
[376387171,1753960240769,-460.0,0.00019178,2]
[376387172,1753960240783,-460.0,0.00019178,2]
[376387173,1753960240792,-460.0,0.00019178,2]
[376387174,1753960240802,-460.0,0.00019178,2]
[376387175,1753960240811,-460.0,0.00019178,2]
[376387176,1753960240822,-460.0,0.00019178,2]
[376387177,1753960240831,-460.0,0.00019178,2]
[376387178,1753960240840,-460.0,0.00019178,2]
[376387179,1753960240850,-460.0,0.00019178,2]
[376387180,1753960240860,-460.0,0.00019178,2]
[376387181,1753960240870,-460.0,0.00019178,2]
[376387182,1753960240879,-460.0,0.00019178,2]
[376387183,1753960240888,-443.45177003,0.00019178,2]
[376387184,1753960240898,-460.0,0.00019178,2]
[376387185,1753960240908,-460.0,0.00019178,2]
[376387186,1753960240917,-460.0,0.00019178,2]
[376387187,1753960240927,-460.0,0.00019178,2]
[376387188,1753960240936,-460.0,0.00019178,2]
[376387189,1753960240945,-318.5055241,0.00019178,2]
[376387190,1753960240955,-460.0,0.00019178,2]
[376387191,1753960240965,-460.0,0.00019178,2]
[376387192,1753960240974,-460.0,0.00019178,2]
[376387193,1753960240984,-460.0,0.00019178,2]
[376387194,1753960240993,-460.0,0.00019178,2]
[376387195,1753960241002,-460.0,0.00019178,2]
[376387196,1753960241012,-460.0,0.00019178,2]
[376387197,1753960241021,-460.0,0.00019178,2]
[376387198,1753960241031,-460.0,0.00019178,2]
[376387199,1753960241040,-460.0,0.00019178,2]
[376387200,1753960241049,-460.0,0.00019178,2]
[376387201,1753960241058,-460.0,0.00019178,2]
[376387202,1753960241068,-470.72057866,0.00019178,2]
[376387203,1753960241077,-460.0,0.00019178,2]
[376387204,1753960241087,-233.92515939,0.00019178,2]
[376387205,1753960241096,-460.0,0.00019178,2]
[376387206,1753960241105,-460.0,0.00019178,2]
[376387207,1753960241114,-460.0,0.00019178,2]
[376387208,1753960241124,-460.77888827,0.00019178,2]
[376387209,1753960241135,-581.137016,0.00019178,2]
[376387210,1753960241144,-460.0,0.00019178,2]
[376387211,1753960241153,-460.0,0.00019178,2]
[376387212,1753960241162,-460.0,0.00019178,2]
[376387213,1753960241171,-460.0,0.00019178,2]
[376387214,1753960241181,-460.0,0.00019178,2]
[376387215,1753960241191,-460.0,0.00019178,2]
[376387216,1753960241200,-306.41489574,0.00019178,2]
[376387217,1753960241209,-460.0,0.00019178,2]
[376387218,1753960241218,-460.0,0.00019178,2]
[376387219,1753960241227,-460.0,0.00019178,2]
[376387220,1753960241236,-442.84945893,0.00019178,2]
[376387221,1753960241246,-460.0,0.00019178,2]
[376387222,1753960241255,-460.0,0.00019178,2]
[376387223,1753960241264,-460.0,0.00019178,2]
[376387224,1753960241274,-460.0,0.00019178,2]
[376387225,1753960241282,-460.0,0.00019178,2]
[376387226,1753960241292,-460.0,0.00019178,2]
[376387227,1753960241301,-460.0,0.00019178,2]
[376387228,1753960241311,-460.0,0.00019178,2]
[376387229,1753960241320,-460.0,0.00019178,2]
[376387230,1753960241329,-460.0,0.00019178,2]
[376387231,1753960241346,-487.64214593,0.00019178,2]
[376387232,1753960241360,-460.0,0.00019178,2]
[376387233,1753960241368,-460.0,0.00019178,2]
[376387234,1753960241377,-460.0,0.00019178,2]
[376387235,1753960241387,-460.0,0.00019178,2]
[376387236,1753960241396,-460.0,0.00019178,2]
[376387237,1753960241405,-460.0,0.00019178,2]
[376387238,1753960241414,-460.0,0.00019178,2]
[376387239,1753960241423,-460.0,0.00019178,2]
[376387240,1753960241433,-474.91319564,0.00019178,2]
[376387241,1753960241442,-460.0,0.00019178,2]
[376387242,1753960241451,-460.0,0.00019178,2]
[376387243,1753960241461,-460.0,0.00019178,2]
[376387244,1753960241470,-460.0,0.00019178,2]
[376387245,1753960241481,-460.0,0.00019178,2]
[376387246,1753960241490,-460.0,0.00019178,2]
[376387247,1753960241499,-460.0,0.00019178,2]
[376387248,1753960241509,-460.0,0.00019178,2]
[376387249,1753960241518,-460.0,0.00019178,2]
[376387250,1753960241527,-460.0,0.00019178,2]
[376387251,1753960241536,-460.0,0.00019178,2]
[376387252,1753960241546,-460.0,0.00019178,2]
[376387253,1753960241555,-460.0,0.00019178,2]
[376387254,1753960241564,-460.0,0.00019178,2]
[376387255,1753960241574,-460.0,0.00019178,2]
[376387256,1753960241583,-460.0,0.00019178,2]
[376387257,1753960241592,-460.0,0.00019178,2]
[376387258,1753960241602,-460.0,0.00019178,2]
[376387259,1753960241612,-460.0,0.00019178,2]
[376387260,1753960241620,-401.88421159,0.00019178,2]
[376387261,1753960241630,-461.60941473,0.00019178,2]
[376387262,1753960241639,-460.0,0.00019178,2]
[376387263,1753960241648,-460.0,0.00019178,2]
[376387264,1753960241657,-403.76008107,0.00019178,2]
[376387265,1753960241666,-460.0,0.00019178,2]
[376387266,1753960241675,-460.0,0.00019178,2]
[376387267,1753960241684,-460.0,0.00019178,2]
[376387268,1753960241693,-460.0,0.00019178,2]
[376387269,1753960241703,-460.0,0.00019178,2]
[376387270,1753960241712,-476.15524608,0.00019178,2]
[376387271,1753960241721,-273.53493485,0.00019178,2]
[376387272,1753960241730,-460.0,0.00019178,2]
[376387273,1753960241740,-460.0,0.00019178,2]
[376387274,1753960241750,-460.0,0.00019178,2]
[376387275,1753960241759,-460.0,0.00019178,2]
[376387276,1753960241769,-460.0,0.00019178,2]
[376387277,1753960241782,-460.0,0.00019178,2]
[376387278,1753960241792,-460.0,0.00019178,2]
[376387279,1753960241801,-460.0,0.00019178,2]
[376387280,1753960241811,-460.0,0.00019178,2]
[376387281,1753960241821,-366.02769665,0.00019178,2]
[376387282,1753960241830,-460.0,0.00019178,2]
[376387283,1753960241839,-460.0,0.00019178,2]
[376387284,1753960241850,-160.32853226,0.00019178,2]
[376387285,1753960241859,-221.50672137,0.00019178,2]
[376387286,1753960241868,-460.0,0.00019178,2]
[376387287,1753960241878,-460.0,0.00019178,2]
[376387288,1753960241887,-460.0,0.00019178,2]
[376387289,1753960241897,-460.0,0.00019178,2]
[376387290,1753960241906,-460.0,0.00019178,2]
[376387291,1753960241915,-460.0,0.00019178,2]
[376387292,1753960241925,-460.0,0.00019178,2]
[376387293,1753960241935,-460.0,0.00019178,2]
[376387294,1753960241947,-460.0,0.00019178,2]
[376387295,1753960241957,-460.0,0.00019178,2]
[376387296,1753960241967,-194.73791853,0.00019178,2]
[376387297,1753960241977,-460.0,0.00019178,2]
[376387298,1753960241986,-460.0,0.00019178,2]
[376387299,1753960241996,-471.63769561,0.00019178,2]
[376387300,1753960242005,-460.0,0.00019178,2]
[376387301,1753960242015,-460.0,0.00019178,2]
[376387302,1753960242024,-460.0,0.00019178,2]